Cogmind - Beta 9.2 @@@ ROGUE MODE // 2019.11.13 @ 12:03:58 Player: Pimski Result: Destroyed by NK-0LA with NK-0LA's Tesla Doomcannon Performance ------------- Evolutions (1) 500 Regions Visited (6) 1200 Robots Destroyed (47) 235 Value Destroyed (605) 605 Prototype IDs (32) 640 Alien Tech Used (0) 0 Bonus (-477) -477 TOTAL SCORE: 2703 Bonus ------- Aligned with FarCom 300 Friendly Fire -777 Cogmind --------- Core Integrity 0/400 Matter 270/300 Energy 100/100 System Corruption 8% Temperature Cool (0) Movement Treading (165) Ox1 Location -8/Mines Parts ------- > --- POWER (1) -------- (None) > --- PROPULSION (2) --- Advanced Treads Advanced Treads > --- UTILITY (4) ------ Large Storage Unit Large Storage Unit Large Storage Unit Cloak of Protection > --- WEAPON (2) ------- Heavy Assault Rifle Improved Assault Rifle > --- INVENTORY (22) --- Cold Fusion Reactor Light Neutrino Core Improved Treads Improved Treads Advanced Treads Potential Leg Potential Leg Combat Antigrav System Improved Flight Unit Medium Storage Unit Large Storage Unit Gravity Neutralizing Apparatus Gravity Neutralizing Apparatus Advanced Core Analyzer Advanced Weapon Cycler System Purifier Assault Rifle 8R-AWN's Boregun 8R-AWN's Boregun Mini Grenade Launcher Heavy Hammer Deploy-a-Sentry Peak State ------------ > --- POWER ------------ (None) > --- PROPULSION ------- Potential Leg Potential Leg > --- UTILITY ---------- Large Storage Unit Large Storage Unit Large Storage Unit Cloak of Protection > --- WEAPON ----------- Improved Assault Rifle Mini Grenade Launcher > --- INVENTORY -------- Light Nuclear Core Light Treads Improved Treads Improved Treads Advanced Treads Advanced Treads Advanced Treads Improved Flight Unit Improved Heat Sink Medium Storage Unit Large Storage Unit Gravity Neutralizing Apparatus Gravity Neutralizing Apparatus Advanced Weapon Cycler Assault Rifle Heavy Assault Rifle 8R-AWN's Boregun 8R-AWN's Boregun Heavy Hammer [Rating: 43] Favorites ----------- Power Ion Engine Engine Ion Engine Power Core Light Nuclear Core Reactor Cold Fusion Reactor Propulsion Light Treads Treads Light Treads Leg Aluminum Leg Wheel Compact Wheel Utility Large Storage Unit Device Cloak of Protection Storage Large Storage Unit Protection Insulated Plating Weapon Heavy Assault Rifle Energy Gun Small Laser Ballistic Gun Heavy Assault Rifle Launcher Grenade Launcher Impact Weapon Heavy Hammer Build | -11 -10 -10 -9 -9 -9 -8 ------- Run | Scr Mat Min Mat Min Exi Min Slots Evolved 2 | . . . 2 . . . Power . | . . . . . . . Propulsion . | . . . . . . . Utility 2 | . . . 2 . . . Weapon . | . . . . . . . Parts Attached 51 | . 5 3 11 1 31 . Power 5 | . . . 2 . 3 . Engine 2 | . . . 2 . . . Core 2 | . . . . . 2 . Reactor 1 | . . . . . 1 . Propulsion 13 | . 2 2 3 . 6 . Treads 10 | . 2 1 3 . 4 . Leg 2 | . . . . . 2 . Wheel 1 | . . 1 . . . . Hover . | . . . . . . . Flight . | . . . . . . . Utility 17 | . 2 . 4 . 11 . Device 4 | . . . . . 4 . Storage 5 | . 2 . 2 . 1 . Processor . | . . . . . . . Hackware . | . . . . . . . Protection 8 | . . . 2 . 6 . Artifact . | . . . . . . . Weapon 16 | . 1 1 2 1 11 . Energy Gun . | . . . . . . . Energy Cannon . | . . . . . . . Ballistic Gun 10 | . 1 . 2 1 6 . Ballistic Cannon . | . . . . . . . Launcher 4 | . . 1 . . 3 . Special Weapon . | . . . . . . . Impact Weapon 2 | . . . . . 2 . Slashing Weapon . | . . . . . . . Piercing Weapon . | . . . . . . . Special Melee Weapon . | . . . . . . . Unidentified Prototypes 4 | . . . . . 4 . Parts Lost 13 | . . . 2 . 10 1 Power 3 | . . . 1 . 1 1 Propulsion 2 | . . . . . 2 . Utility 4 | . . . . . 4 . Weapon 4 | . . . 1 . 3 . Highest Loss Streak 3 | . . . 2 . 3 1 Average Slot Usage (%) 96 | . 95 100 98 100 94 97 Engine 8 | . 14 14 10 11 4 . Core 1 | . . . . . 2 8 Treads 22 | . 26 26 21 22 20 22 Device 2 | . . . . . 4 11 Storage 33 | . 23 28 37 44 35 33 Protection 2 | . . . 5 . 3 . Ballistic Gun 22 | . 24 25 20 22 20 22 Launcher 1 | . . 2 1 . . . Naked Turns . | . . . . . . . Heaviest Build 77 | 12 40 41 75 77 77 67 Greatest Support 60 | 20 40 40 42 42 60 44 Greatest Overweight (x) 2 | . . 2 1 1 2 1 Average Overweight (x) . | . . . 1 1 . 1 Largest Inventory Capacity 28 | 6 16 16 28 28 28 22 Average Capacity 21 | 6 12 16 24 28 23 22 Most Carried 28 | 6 12 16 28 28 28 22 Average Carried 19 | 6 8 13 23 28 22 22 Final Capacity 28 | 6 16 16 28 28 22 22 Final Carried 28 | 6 12 16 28 28 22 22 Class Distribution -------------------- 63% | Hauler-Mutant 36% | Mutant Dominant Class ---------------- Mutant | -10/Materials Mutant | -10/Mines Hauler-Mutant | -9/Materials Hauler-Mutant | -9/Mines Hauler-Mutant | -9/Exiles Hauler-Mutant | -8/Mines Resources | -11 -10 -10 -9 -9 -9 -8 ----------- Run | Scr Mat Min Mat Min Exi Min Matter Collected 1573 | 221 54 178 237 80 803 . Remotely . | . . . . . . . Salvage Created 1535 | 60 98 364 316 181 494 22 Parts 104 | . 3 17 22 12 48 2 Haulers Intercepted 3 | . . . 3 . . . Recyclers Shooed 2 | . . . 2 . . . Parts Field Recycled . | . . . . . . . Retrieved Matter . | . . . . . . . Parts Self-Destructed . | . . . . . . . Prevented . | . . . . . . . Kills | -11 -10 -10 -9 -9 -9 -8 ------- Run | Scr Mat Min Mat Min Exi Min Combat Hostiles Destroyed 22 | . . 11 4 4 3 . Guns 17 | . . 8 4 4 1 . AOE 5 | . . 3 . . 2 . Classes Destroyed 9 | 1 . 3 2 . 2 1 Worker 1 | . . . . . . 1 Hauler 3 | . . . 3 . . . Recycler 4 | 1 1 2 . . . . Turret 1 | . . . . . 1 . Swarmer 6 | . . 6 . . . . Grunt 9 | . . 2 3 4 . . Sentry 1 | . . . 1 . . . Zionite 8 | . . . . . 8 . Assembled 10 | . . 3 . . 7 . Best Kill Streak 8 | 1 1 4 3 3 8 1 Combat Bots Only 3 | . . 3 3 2 2 . Max Kills in Single Turn 5 | 1 1 2 1 1 5 1 Gunslinging . | . . . . . . . Exploded 2 | . . 2 . . 1 . Melee . | . . . . . . . Uniques/NPCs Destroyed 2 | . . . . . 2 . 8R-AWN (-9/Exiles) EX-HEX (-9/Exiles) EX-BIN (-9/Exiles) EX-DEC (-9/Exiles) Combat | -11 -10 -10 -9 -9 -9 -8 -------- Run | Scr Mat Min Mat Min Exi Min Damage Taken 3223 | . . 504 213 173 1689 644 Core 468 | . . 60 51 . 273 84 Absorbed by Shields . | . . . . . . . Core Remaining (%) 88 | 100 . 76 . . . . Volleys Fired 177 | 7 1 34 35 13 82 5 Largest 2 | 2 2 2 2 2 2 2 Hottest 60 | 60 40 40 43 46 46 46 Shots Fired 341 | 14 2 66 70 26 154 9 Gun 329 | 14 2 64 70 26 144 9 Cannon . | . . . . . . . Launcher 12 | . . 2 . . 10 . Special . | . . . . . . . Kinetic 322 | 7 2 64 70 26 144 9 Thermal 7 | 7 . . . . . . Explosive 12 | . . 2 . . 10 . Electromagnetic . | . . . . . . . Robot Hit Streak 18 | 5 3 10 14 13 18 8 Robot Miss Streak 3 | 1 . 3 2 2 3 1 Penetration Max . | . . . . . . . Secondary Targets 1 | . . 1 . . . . Max Gunslinging Chain 1 | . . 1 . . . . Shots Hit Robots 255 | 9 1 44 52 21 120 8 Core Hits 106 | 2 1 25 17 9 47 5 Critical Hits 1 | . . . . . 1 . Critical Kills . | . . . . . . . Critical Parts Destroyed 1 | . . . . . 1 . Melee Attacks 6 | . . . . . 6 . Impact 6 | . . . . . 6 . Slashing . | . . . . . . . Piercing . | . . . . . . . Sneak Attacks . | . . . . . . . Combat Hostiles . | . . . . . . . Follow-up Attacks . | . . . . . . . Damage Inflicted 4750 | 54 15 726 666 309 2806 174 Guns 3236 | 54 15 456 639 309 1638 125 Cannons . | . . . . . . . Explosions 1016 | . . 267 . . 700 49 Melee 468 | . . . . . 468 . Ramming 30 | . . 3 27 . . . Kinetic 3202 | 20 15 456 639 309 1638 125 Thermal 83 | 34 . . . . . 49 Explosive 967 | . . 267 . . 700 . Electromagnetic . | . . . . . . . Impact 468 | . . . . . 468 . Slashing . | . . . . . . . Piercing . | . . . . . . . Highest Corruption 8 | . . . . . 2 8 Average Corruption 2 | . . . . . 1 3 Corruption Purged . | . . . . . . . Effects 7 | . . . . . 4 3 Message Errors 3 | . . . . . 3 . Matter Fused 1 | . . . . . . 1 Data Loss (minor) 1 | . . . . . 1 . Targeting Errors 1 | . . . . . . 1 Weapon Failures 1 | . . . . . . 1 Overload Shots . | . . . . . . . Overflow Damage 169 | . . 10 12 . 147 . Projectiles . | . . . . . . . Explosions 11 | . . 10 . . 1 . Melee 158 | . . . 12 . 146 . Knockbacks . | . . . . . . . Impact . | . . . . . . . Kinetic . | . . . . . . . Secondary . | . . . . . . . Self-Inflicted Damage 64 | . . 31 . . . 33 Shots 3 | . . 2 . . . 1 Rammed 2 | . . 1 1 . . . Targets Rammed 2 | . . 1 1 . . . Kicked . | . . . . . . . Crushed . | . . . . . . . Highest Temperature 125 | . . 9 28 8 125 6 Average Temperature 38 | . . 7 10 3 61 6 Received Heat Transfer 270 | . . 84 90 96 . . Siege Activations . | . . . . . . . Robots Corrupted . | . . . . . . . Combat Hostiles . | . . . . . . . Parts Fried 4 | . . . . . 4 . Impact Corruptions 5 | . . . 1 . 4 . Robots Melted . | . . . . . . . Combat Hostiles . | . . . . . . . Parts Melted . | . . . . . . . Heat Transferred 125 | 75 . . . . . 50 Parts Sabotaged . | . . . . . . . Parts Stolen . | . . . . . . . Parts Stripped . | . . . . . . . Power Chain Reactions . | . . . . . . . Missiles Intercepted . | . . . . . . . Alert | -11 -10 -10 -9 -9 -9 -8 ------- Run | Scr Mat Min Mat Min Exi Min Peak Influence 200 | 5 91 200 143 131 . 80 Average Influence 72 | 2 45 86 73 106 . 30 Maximum Alert Level 1 | . . 1 . . . . Low Security (%) 94 | 100 100 86 100 100 . 100 Level 1 5 | . . 13 . . . . Level 2 . | . . . . . . . Level 3 . | . . . . . . . Level 4 . | . . . . . . . Level 5 . | . . . . . . . High Security . | . . . . . . . Max Security . | . . . . . . . Squads Dispatched 2 | . 1 . 1 . . . Investigation . | . . . . . . . Extermination . | . . . . . . . Reinforcement 2 | . 1 . 1 . . . Assault . | . . . . . . . Garrison . | . . . . . . . Intercept . | . . . . . . . Construction Impeded . | . . . . . . . Haulers Reinforced . | . . . . . . . Stealth | -11 -10 -10 -9 -9 -9 -8 --------- Run | Scr Mat Min Mat Min Exi Min Distress Signals . | . . . . . . . Communications Jammed . | . . . . . . . Distress Signals . | . . . . . . . Times Spotted 53 | . 4 17 5 4 22 1 Peak Tracking Total 7 | . 2 7 2 2 5 1 Tactical Retreats 4 | . . 1 . . 3 . Traps | -11 -10 -10 -9 -9 -9 -8 ------- Run | Scr Mat Min Mat Min Exi Min Traps Triggered . | . . . . . . . Indirectly . | . . . . . . . Trap Hack Attempts . | . . . . . . . Triggered . | . . . . . . . Disarmed . | . . . . . . . Reprogrammed . | . . . . . . . Reused . | . . . . . . . Traps Extracted . | . . . . . . . Installed . | . . . . . . . Triggered . | . . . . . . . Machines | -11 -10 -10 -9 -9 -9 -8 ---------- Run | Scr Mat Min Mat Min Exi Min Machines Disabled 11 | . . . 1 . 7 3 Max in Single Turn 3 | . . . 1 . 2 3 Machines Sabotaged . | . . . . . . . Garrisons Compromised . | . . . . . . . Overloaded Fab Kills . | . . . . . . . Fab Network Shutdowns . | . . . . . . . Hacking | -11 -10 -10 -9 -9 -9 -8 --------- Run | Scr Mat Min Mat Min Exi Min Machines Accessed 9 | . 4 . 2 . 2 1 Terminals 6 | . 4 . 1 . . 1 Fabricators . | . . . . . . . Repair Stations 1 | . . . 1 . . . Recycling Units . | . . . . . . . Scanalyzers . | . . . . . . . Garrison Access . | . . . . . . . Total Hacks 25 | . 15 . 6 . 2 2 Successful 15 | . 8 . 3 . 2 2 Failed 10 | . 7 . 3 . . . Catastrophic 1 | . . . 1 . . . Database Lockouts . | . . . . . . . Manual 15 | . 12 . . . 1 2 Terminals 19 | . 15 . 2 . . 2 Fabricators . | . . . . . . . Repair Stations 4 | . . . 4 . . . Recycling Units . | . . . . . . . Scanalyzers . | . . . . . . . Garrison Access . | . . . . . . . Terminal Hacks 9 | . 6 . 1 . 2 . Record 1 | . . . . . 1 . Prototype ID Bank 3 | . 3 . . . . . Branch Access Points 1 | . 1 . . . . . Locate Traps 1 | . 1 . . . . . Recall Reinforcements 1 | . 1 . . . . . Hauler Manifests 1 | . . . 1 . . . EX-Prototype ID Bank 1 | . . . . . 1 . Fabricator Hacks . | . . . . . . . Repair Station Hacks 2 | . . . 2 . . . Scan Component 1 | . . . 1 . . . Repair 1 | . . . 1 . . . Recycling Unit Hacks . | . . . . . . . Scanalyzer . | . . . . . . . Garrison Access Hacks . | . . . . . . . Unauthorized Hacks 10 | . 6 . . . . 4 Terminals 4 | . 2 . . . . 2 Track 1 | . . . . . . 1 Assimilate 1 | . 1 . . . . . Botnet 1 | . 1 . . . . . Disrupt 1 | . . . . . . 1 Fabricators . | . . . . . . . Repair Stations . | . . . . . . . Recycling Units . | . . . . . . . Scanalyzers . | . . . . . . . Garrison Access . | . . . . . . . Data Cores Recovered . | . . . . . . . Used . | . . . . . . . Hacking Detections 7 | . 4 . 2 . . 1 Full Trace Events 1 | . . . 1 . . . Feedback Events . | . . . . . . . Feedback Blocked . | . . . . . . . Robot Schematics Acquired . | . . . . . . . Robots Built . | . . . . . . . Matter . | . . . . . . . Time . | . . . . . . . Total Robot Build Rating . | . . . . . . . Part Schematics Acquired . | . . . . . . . Parts Built . | . . . . . . . Matter . | . . . . . . . Time . | . . . . . . . Total Part Build Rating . | . . . . . . . Parts Repaired 1 | . . . 1 . . . Time 13 | . . . 13 . . . Parts Recycled . | . . . . . . . Recycled Matter . | . . . . . . . Retrieved Matter . | . . . . . . . Retrieved Components . | . . . . . . . Parts Scanalyzed . | . . . . . . . Part Schematics Acquired . | . . . . . . . Parts Damaged . | . . . . . . . Bothacking | -11 -10 -10 -9 -9 -9 -8 ------------ Run | Scr Mat Min Mat Min Exi Min Used RIF Installer . | . . . . . . . Robots Hacked . | . . . . . . . Non-combat . | . . . . . . . Combat . | . . . . . . . Robot Hacks Applied . | . . . . . . . Relay Couplers Released . | . . . . . . . Robots Rewired . | . . . . . . . Allies Hacked . | . . . . . . . Hacks Repelled . | . . . . . . . Allies | -11 -10 -10 -9 -9 -9 -8 -------- Run | Scr Mat Min Mat Min Exi Min Total Allies 1 | . 1 . . . . . Largest Group 1 | . 1 1 . . . . Highest-Rated Group 10 | . 10 10 . . . . Highest-Rated Ally 10 | . 10 10 . . . . Total Orders . | . . . . . . . Ally Attacks . | . . . . . . . Total Damage . | . . . . . . . Kills . | . . . . . . . Allies Corrupted . | . . . . . . . Allies Melted . | . . . . . . . Intel | -11 -10 -10 -9 -9 -9 -8 ------- Run | Scr Mat Min Mat Min Exi Min Robot Analysis Total . | . . . . . . . Derelict Logs Recovered 2 | . . 2 . . . . Drone Launches . | . . . . . . . Drone Recoveries . | . . . . . . . Exploration | -11 -10 -10 -9 -9 -9 -8 ------------- Run | Scr Mat Min Mat Min Exi Min Turns Passed 3615 | 65 333 700 589 178 1711 39 Spaces Moved 1765 | 37 191 380 239 75 831 12 Core . | . . . . . . . Treads 1588 | . 179 293 239 75 790 12 Legs 90 | 37 12 . . . 41 . Wheels 87 | . . 87 . . . . Hover . | . . . . . . . Flight . | . . . . . . . Fastest Speed 45 | 120 120 120 172 172 45 165 Average Speed 162 | 120 157 151 173 172 165 165 Slowest Speed 185 | 120 160 180 180 172 185 165 Overloaded Moves 12 | . . . . . 12 . Propulsion Burnouts . | . . . . . . . Robots Hopped . | . . . . . . . Cave-ins Triggered . | . . . . . . . Exploration Rate (%) 33 | 3 35 66 16 19 90 7 Regions Visited 6 Branch Regions 4 Pre-discovered Areas 1 | . . . . . 1 . Known Exits Taken 1 | . 1 . . . . . Unknown Exits Taken 5 | 1 . 1 1 1 1 . Scrap Searched . | . . . . . . . Spaces Dug . | . . . . . . . Terrain Destroyed 63 | . . 14 . . 24 25 Melee . | . . . . . . . Projectile . | . . . . . . . AOE 63 | . . 14 . . 24 25 Actions | -11 -10 -10 -9 -9 -9 -8 --------- Run | Scr Mat Min Mat Min Exi Min Total 2187 | 43 223 445 353 99 1002 22 Wait 81 | . 14 20 28 11 3 5 Move 1759 | 36 190 379 238 74 830 12 Hop . | . . . . . . . Pick Up 66 | . 9 6 27 . 24 . Fast Attach 8 | . 1 1 3 . 3 . Attach 20 | . 3 . 4 . 13 . Detach 3 | . . . . . 3 . Swap 23 | . 1 2 4 1 15 . Drop 42 | . 4 2 13 . 23 . Fire 177 | 7 1 34 35 13 82 5 Melee 6 | . . . . . 6 . Ram . | . . . . . . . Kick . | . . . . . . . Crush 2 | . . 1 1 . . . Escape Stasis . | . . . . . . . Rewire . | . . . . . . . Trap . | . . . . . . . Miscellaneous . | . . . . . . . Route ------- -11/Scrapyard -10/Materials (discovered 3 exits: *Mat / *Min x2) -10/Mines -9/Materials (discovered 3 exits: [*Mat] / [*Min] / Sto) -9/Mines -9/Exiles -8/Mines History --------- Turn | Location | Event 10 | -11/Scrapyard | Discovered new exit (range 3) 66 | -11/Scrapyard | Entered Materials 266 | -10/Materials | Identified exit to Mines 286 | -10/Materials | Discovered new exit (range 16) 318 | -10/Materials | Build established: Mutant 399 | -10/Materials | Entered Mines 399 | -10/Mines | Accompanied by 1 ally 441 | -10/Mines | Discovered new exit (range 11) 907 | -10/Mines | Learned Materials security intel 956 | -10/Mines | Assembled infested the area 961 | -10/Mines | Assisted by a Guerilla fighting off Assembled 1099 | -10/Mines | Entered Materials 1099 | -9/Materials | Evolved 2 slots: Utility x2 1100 | -9/Materials | Identified exit to Storage 1297 | -9/Materials | Discovered new exit (range 6) 1338 | -9/Materials | Repaired Lgt. Treads 1424 | -9/Materials | Build established: Hauler-Mutant 1501 | -9/Materials | Discovered new exit (range 9) 1688 | -9/Materials | Entered Mines 1842 | -9/Mines | Deemed a non-threat by the Exiles lab entrance 1842 | -9/Mines | Discovered new exit (range 5) 1866 | -9/Mines | Entered Exiles 1908 | -9/Exiles | Met 8R-AWN 1968 | -9/Exiles | Met EX-HEX 2049 | -9/Exiles | Met EX-DEC 2080 | -9/Exiles | Learned location of Zion (-7) 2259 | -9/Exiles | Met EX-BIN 2283 | -9/Exiles | Aligned with FarCom system 2285 | -9/Exiles | Given EX-Vault access code 2325 | -9/Exiles | Opened EX-Vault 2338 | -9/Exiles | Found Cloak of Protection 2341 | -9/Exiles | Found Potential Leg 2344 | -9/Exiles | Found Potential Leg 2382 | -9/Exiles | Warned to stay clear of 0b10 Research branches 2517 | -9/Exiles | Attacked by the Exiles 2581 | -9/Exiles | Lost 3 parts (1p1u1w) 2631 | -9/Exiles | Destroyed 8R-AWN 2644 | -9/Exiles | Found Prototype Ballistic Gun 2649 | -9/Exiles | Found Prototype Ballistic Gun 2659 | -9/Exiles | Lost 3 parts (1n1u1w) 2835 | -9/Exiles | Core integrity fell below 50% 2873 | -9/Exiles | Lost 3 parts (2u1w) 3099 | -9/Exiles | Destroyed EX-HEX 3148 | -9/Exiles | Destroyed EX-BIN 3203 | -9/Exiles | Core integrity fell below 20% 3208 | -9/Exiles | Destroyed EX-DEC 3226 | -9/Exiles | Found Prototype Device 3241 | -9/Exiles | Found Deploy-a-Sentry 3355 | -9/Exiles | Identified System Purifier 3561 | -9/Exiles | Discovered new exit (range 12) 3577 | -9/Exiles | Stole three prototypes: Cloak of Protection, Potential Leg, Deploy-a-Sentry 3577 | -9/Exiles | Entered Mines 3596 | -8/Mines | NK-0LA came to Exiles' defense 3616 | -8/Mines | Destroyed by NK-0LA with NK-0LA's Tesla Doomcannon Last Messages --------------- 03578_ K-01 Serf collects debris. 03579_ Connecting with Terminal... 03579_ Current location identified: Mines >>Trojan(Disrupt) Trojan loaded successfully. Testing... Disruption routine running. >>Trojan(Track) Trojan loaded successfully. Testing... Tracking enabled and active. 03580_ K-01 Serf collects debris. 03596_ NK-0LA: "I came as fast as I could... Wait, it was you!" 03599_ K-01 Serf cleans the Plasma Injector. 03602_ Plasma Injector explodes. 03602_ K-01 Serf destroyed. 03608_ Lgt. Nuclear Core destroyed. 03611_ System corrupted: Imp. Assault Rifle targeting data glitched. 03614_ System corrupted: Matter fused (-8). 03614_ System corrupted: Imp. Assault Rifle jammed. Map ----- +----------------------------------------------------+ | | | | | | | | | | | | | | | ????????????????????????????????????? | | ????????????????????????????????????? | | ????????????????????????????????????? | | ????????????????????????????????????? | | ????????????????????????????????????? | | ????????????????????????????????????? | | ????????????????????????????????????? | | ????????????????????????????????????? | | ????????????????????????????????????? | | ?????########???????????????????????? | | ????##;;;;;;;#??????????????????????? | | ????#; #??????????????????????? | | ????#; ;??????????????????????? | | ????#; ##?????????????????????? | | ????#; T#?????????????????????? | | ????# ;######????????????????? | | ????#; #????????????????? | | ????#; x #????????????????? | | ????# @#### #????????????????? | | ???# #?????#????????????????? | | ???# #??????????????????????? | | ???##; #???k??????????????????? | | ????#; ! #??????????????????????? | | ????#; %= #??????????????????????? | | ????#; #??????????????????????? | | ????## #??????????????????????? | | ?????#########??????????????????????? | | ????????????????????????????????????? | | ????????????????????????????????????? | | ????????????????????????????????????? | | ????????????????????????????????????? | | ????????????????????????????????????? | | ????????????????????????????????????? | | ????????????????????????????????????? | | ????????????????????????????????????? | | ????????????????????????????????????? | | ????????????????????????????????????? | | ????????????????????????????????????? | | ????????????????????????????????????? | | ????????????????????????????????????? | | ????????????????????????????????????? | | ????????????????????????????????????? | | ????????????????????????????????????? | +----------------------------------------------------+ Best States ------------- Heat Dissipation 28 Energy Generation 14 Energy Capacity 265 Matter Stores 300 Matter Capacity 300 Sight Range 16 Terrain Scan Density 10 Armor Coverage 300 Resistance: EM 15 Evasion (%) 51 Recoil Reduction 2 Item Schematics ----------------- None Robot Schematics ------------------ None Fabricated ------------ Nothing Alien Tech Used ----------------- None Achievements -------------- None Challenges ------------ None Game ------ Seed DeliveryFissionCharger Manual? 0 Play Time 00:33:54 Cumulative 597.2 hours Start 2019.11.13 @ 11:22:32 End 2019.11.13 @ 12:03:58 Sessions 1 Manual Loads 0 Difficulty Rogue Special Mode None Game No. 382 Rogue 382 Adventurer 0 Explorer 0 Win Type - Total 99 Types 66/6/7/10/5/1/4 Lore% 96 Gallery% 94 Achievement% 80 Wizard Run 0 Options --------- ASCII 0 Keyboard 0 Movement Numpad Keybinds 0 Fullscreen 2 Font 18/SmallcapsGlow Map View 76x50 Tactical HUD 1 Map Filters NONE Filters NONE Steam 1 RUN: 73d96e86-54d9-4066-ac8b-b95d75f5e937